[Event "14th Chennai GM Open 2023"]
[Site "Chennai"]
[Date "2024.01.04"]
[Round "7.7"]
[White "Manik, Mikulas"]
[Black "Aakash G"]
[Result "1/2-1/2"]
[ECO "B51"]
[WhiteElo "2343"]
[BlackElo "1823"]
[Annotator "RC"]
[PlyCount "42"]
[EventDate "2023.12.31"]
[EventType "swiss"]
[EventCountry "IND"]
[SourceTitle "playchess.com"]
[Source "ChessBase"]
[SourceQuality "1"]
[TimeControl "5400+30"]

1. e4 {[%emt 0:00:03]} c5 {[%emt 0:00:07]} 2. Nf3 {[%emt 0:00:05]} d6 {[%emt 0:00:05]} 3. Bb5+ {[%emt 0:00:53]} Nd7 {[%emt 0:00:10]} 4. O-O {[%emt 0:00:47]} a6 {[%emt 0:00:52]} 5. Bd3 {[%emt 0:03:43]} g6 {[%emt 0:00:52]} 6. c3 {[%emt 0:00:03]} Bg7 {[%emt 0:00:11]} 7. Bc2 {[%emt 0:00:03]} Ngf6 {[%emt 0:00:34]} 8. d4 {[%emt 0:00:05]} O-O {[%emt 0:00:40]} 9. Re1 {[%emt 0:00:20]} cxd4 {[%emt 0:04:54]} 10. cxd4 {[%emt 0:00:05]} Nb6 {[%emt 0:02:22]} 11. Nbd2 {[%emt 0:06:23]} Nh5 {[%emt 0:04:20]} 12. b3 {[%emt 0:06:16]} e5 {[%emt 0:04:03]} 13. Ba3 {[%emt 0:01:05]} exd4 {[%emt 0:08:46]} 14. e5 {[%emt 0:00:46]} Nf4 {[%emt 0:01:07]} 15. Bxd6 {[%emt 0:07:43]} d3 {[%emt 0:07:47]} 16. Bb1 {[%emt 0:00:16]} Ne2+ {[%emt 0:07:59]} 17. Kh1 {[%emt 0:02:00]} Nc3 {[%emt 0:04:56]} 18. Qc1 {[%emt 0:00:08]} Ne2 {[%emt 0:02:23]} 19. Qd1 {[%emt 0:18:55]} Nc3 {[%emt 0:00:19]} 20. Qc1 {[%emt 0:00:06]} Ne2 {[%emt 0:00:09]} 21. Qd1 {[%emt 0:00:05]} Nc3 {[%emt 0:00:10]} 1/2-1/2

[Event "14th Chennai GM Open 2023"]
[Site "Chennai"]
[Date "2024.01.04"]
[Round "7.8"]
[White "Viani Antonio Dcunha"]
[Black "Pawar, Harshit"]
[Result "1/2-1/2"]
[ECO "C11"]
[WhiteElo "2407"]
[BlackElo "1945"]
[Annotator "RC"]
[PlyCount "210"]
[EventDate "2023.12.31"]
[EventType "swiss"]
[EventCountry "IND"]
[SourceTitle "playchess.com"]
[Source "ChessBase"]
[SourceQuality "1"]
[TimeControl "5400+30"]

1. e4 {[%emt 0:00:08]} e6 {[%emt 0:00:20]} 2. d4 {[%emt 0:00:08]} d5 {[%emt 0:00:02]} 3. Nc3 {[%emt 0:00:10]} Nf6 {[%emt 0:00:05]} 4. e5 {[%emt 0:00:12]} Nfd7 {[%emt 0:00:04]} 5. f4 {[%emt 0:00:14]} c5 {[%emt 0:00:02]} 6. Nf3 {[%emt 0:00:12]} Nc6 {[%emt 0:00:02]} 7. Be3 {[%emt 0:00:21]} Be7 {[%emt 0:00:29]} 8. Qd2 {[%emt 0:00:39]} O-O {[%emt 0:00:12]} 9. dxc5 {[%emt 0:01:47]} Nxc5 {[%emt 0:01:16]} 10. O-O-O {[%emt 0:02:10]} b6 {[%emt 0:01:29]} 11. h4 {[%emt 0:06:35]} f6 {[%emt 0:01:50]} 12. exf6 {[%emt 0:09:51]} Bxf6 {[%emt 0:00:08]} 13. Nd4 {[%emt 0:01:40]} Nxd4 {[%emt 0:10:08]} 14. Bxd4 {[%emt 0:00:03]} Bxd4 {[%emt 0:04:06]} 15. Qxd4 {[%emt 0:00:06]} Qf6 {[%emt 0:00:05]} 16. g3 {[%emt 0:01:35]} Qxd4 {[%emt 0:05:06]} 17. Rxd4 {[%emt 0:00:03]} g6 {[%emt 0:02:45]} 18. Bg2 {[%emt 0:10:21]} Rb8 {[%emt 0:02:05]} 19. Re1 {[%emt 0:10:39]} Kf7 {[%emt 0:11:33]} 20. Rd2 {[%emt 0:10:44]} Bd7 {[%emt 0:05:57]} 21. Ne2 {[%emt 0:02:02]} Nb7 {[%emt 0:06:08]} 22. Nd4 {[%emt 0:01:55]} Nd6 {[%emt 0:00:22]} 23. Nf3 {[%emt 0:02:41]} Kg7 {[%emt 0:01:33]} 24. Bh3 {[%emt 0:13:28]} Rbe8 {[%emt 0:04:33]} 25. Ne5 {[%emt 0:02:40]} Bc8 {[%emt 0:02:30]} 26. Re3 {[%emt 0:02:31]} Nf7 {[%emt 0:02:30]} 27. Nc6 {[%emt 0:05:37]} Nd6 {[%emt 0:05:36]} 28. Ne5 {[%emt 0:00:06]} Nf7 {[%emt 0:00:04]} 29. a4 {[%emt 0:04:47]} Nxe5 {[%emt 0:00:42]} 30. Rxe5 {[%emt 0:00:03]} Rf7 {[%emt 0:01:03]} 31. Rde2 {[%emt 0:00:59]} Rfe7 {[%emt 0:04:47]} 32. b3 {[%emt 0:00:35]} Kf7 {[%emt 0:02:21]} 33. Kb2 {[%emt 0:00:23]} Rc7 {[%emt 0:00:43]} 34. Re1 {[%emt 0:02:35]} Bd7 {[%emt 0:00:35]} 35. Bf1 {[%emt 0:00:26]} Rcc8 {[%emt 0:03:58]} 36. Bd3 {[%emt 0:00:47]} Kf6 {[%emt 0:02:14]} 37. R1e2 {[%emt 0:02:44]} Re7 {[%emt 0:04:32]} 38. Rh2 {[%emt 0:01:04]} Be8 {[%emt 0:01:22]} 39. Rhe2 {[%emt 0:00:40]} Bd7 {[%emt 0:02:25]} 40. Kc1 {[%emt 0:00:12]} Rg8 {[%emt 0:00:58]} 41. Kd2 {[%emt 0:00:17]} h6 {[%emt 0:00:37]} 42. Kc3 {[%emt 0:01:19]} Ree8 {[%emt 0:01:48]} 43. Kd4 {[%emt 0:00:23]} Re7 {[%emt 0:02:46]} 44. R2e3 {[%emt 0:00:23]} h5 {[%emt 0:00:53]} 45. Re1 {[%emt 0:00:52]} Be8 {[%emt 0:00:31]} 46. Ra1 {[%emt 0:01:08]} a5 {[%emt 0:00:54]} 47. Rb1 {[%emt 0:00:54]} Rc7 {[%emt 0:01:01]} 48. Rbe1 {[%emt 0:01:19]} Bf7 {[%emt 0:00:51]} 49. Rg5 {[%emt 0:01:05]} Rd8 {[%emt 0:00:43]} 50. Rg1 {[%emt 0:00:35]} Rh8 {[%emt 0:00:40]} 51. Rg2 {[%emt 0:01:21]} Rcc8 {[%emt 0:01:14]} 52. Re5 {[%emt 0:00:18]} Rc7 {[%emt 0:00:11]} 53. Rf2 {[%emt 0:00:12]} Rcc8 {[%emt 0:01:42]} 54. Re1 {[%emt 0:00:11]} Rhd8 {[%emt 0:00:37]} 55. Rfe2 {[%emt 0:00:09]} Rc7 {[%emt 0:00:34]} 56. Rb1 {[%emt 0:00:14]} Be8 {[%emt 0:00:18]} 57. Re5 {[%emt 0:01:00]} Ra8 {[%emt 0:00:38]} 58. Rb2 {[%emt 0:00:44]} Rac8 {[%emt 0:00:32]} 59. Re1 {[%emt 0:01:09]} Ra8 {[%emt 0:00:14]} 60. Ra1 {[%emt 0:00:28]} Rca7 {[%emt 0:00:23]} 61. Rbb1 {[%emt 0:01:14]} Bd7 {[%emt 0:00:09]} 62. Rg1 {[%emt 0:00:26]} Be8 {[%emt 0:00:31]} 63. Rae1 {[%emt 0:00:20]} Bf7 {[%emt 0:00:22]} 64. Re5 {[%emt 0:00:19]} Rc7 {[%emt 0:00:17]} 65. Rg5 {[%emt 0:00:40]} Rh8 {[%emt 0:00:02]} 66. Ke3 {[%emt 0:00:34]} Rcc8 {[%emt 0:00:15]} 67. Rb1 {[%emt 0:00:37]} Ra8 {[%emt 0:00:48]} 68. Kd2 {[%emt 0:00:27]} Ra7 {[%emt 0:00:43]} 69. Kc3 {[%emt 0:00:54]} Rc8+ {[%emt 0:00:08]} 70. Kb2 {[%emt 0:00:01]} Be8 {[%emt 0:00:56]} 71. Rg1 {[%emt 0:00:21]} Rh7 {[%emt 0:00:23]} 72. Re1 {[%emt 0:00:07]} Rhc7 {[%emt 0:00:34]} 73. Rge5 {[%emt 0:00:18]} Bf7 {[%emt 0:01:07]} 74. R1e2 {[%emt 0:00:18]} Rd8 {[%emt 0:00:15]} 75. c3 {[%emt 0:00:58]} Rd6 {[%emt 0:01:49]} 76. c4 {[%emt 0:01:13]} dxc4 {[%emt 0:01:06]} 77. Bxc4 {[%emt 0:00:02]} Rcd7 {[%emt 0:00:11]} 78. Kc3 {[%emt 0:00:23]} Rd8 {[%emt 0:00:11]} 79. R2e3 {[%emt 0:01:20]} Rc6 {[%emt 0:02:40]} 80. Rd3 {[%emt 0:01:11]} Rxd3+ {[%emt 0:00:15]} 81. Kxd3 {[%emt 0:00:02]} Rd6+ {[%emt 0:00:25]} 82. Kc3 {[%emt 0:00:33]} Be8 {[%emt 0:00:02]} 83. Bd3 {[%emt 0:00:58]} Rc6+ {[%emt 0:00:25]} 84. Kd4 {[%emt 0:00:11]} Rd6+ {[%emt 0:00:09]} 85. Ke3 {[%emt 0:00:03]} Bc6 {[%emt 0:00:26]} 86. Rg5 {[%emt 0:00:39]} Be8 {[%emt 0:00:01]} 87. Kd2 {[%emt 0:00:58]} Rc6 {[%emt 0:00:16]} 88. Bc4 {[%emt 0:00:30]} Rd6+ {[%emt 0:00:08]} 89. Kc3 {[%emt 0:00:04]} Bc6 {[%emt 0:00:19]} 90. Bd3 {[%emt 0:00:30]} Be8 {[%emt 0:00:04]} 91. Bb5 {[%emt 0:01:05]} Bf7 {[%emt 0:01:16]} 92. Re5 {[%emt 0:00:07]} Ke7 {[%emt 0:00:11]} 93. Re4 {[%emt 0:00:40]} Rd1 {[%emt 0:04:39]} 94. Kc2 {[%emt 0:00:07]} Rd5 {[%emt 0:02:05]} 95. Rc4 {[%emt 0:00:36]} Kf6 {[%emt 0:00:33]} 96. Rc7 {[%emt 0:01:05]} Rc5+ {[%emt 0:00:25]} 97. Rxc5 {[%emt 0:00:02]} bxc5 {[%emt 0:00:05]} 98. Bd3 {[%emt 0:01:00]} e5 {[%emt 0:00:44]} 99. fxe5+ {[%emt 0:00:12]} Kxe5 {[%emt 0:00:04]} 100. Kc3 {[%emt 0:00:05]} Kd6 {[%emt 0:00:29]} 101. Bc2 {[%emt 0:00:51]} Ke5 {[%emt 0:00:43]} 102. Bb1 {[%emt 0:00:38]} Kd6 {[%emt 0:00:37]} 103. Bd3 {[%emt 0:00:16]} Ke5 {[%emt 0:00:41]} 104. Bc2 {[%emt 0:00:10]} Kd6 {[%emt 0:00:06]} 105. Bb1 {[%emt 0:00:52]} Ke5 {[%emt 0:00:39]} 1/2-1/2

[Event "14th Chennai GM Open 2023"]
[Site "Chennai"]
[Date "2024.01.04"]
[Round "7.9"]
[White "Tologon tegin, Semetei"]
[Black "Gaikwad Manas"]
[Result "1-0"]
[ECO "B08"]
[WhiteElo "2384"]
[BlackElo "1860"]
[Annotator "RC"]
[PlyCount "181"]
[EventDate "2023.12.31"]
[EventType "swiss"]
[EventCountry "IND"]
[SourceTitle "playchess.com"]
[Source "ChessBase"]
[SourceQuality "1"]
[TimeControl "5400+30"]

1. Nf3 {[%emt 0:04:55]} Nf6 {[%emt 0:00:08]} 2. d4 {[%emt 0:00:10]} g6 {[%emt 0:00:27]} 3. Nbd2 {[%emt 0:00:38]} Bg7 {[%emt 0:02:26]} 4. e4 {[%emt 0:05:03]} d6 {[%emt 0:00:28]} 5. Bc4 {[%emt 0:07:24]} O-O {[%emt 0:02:08]} 6. O-O {[%emt 0:01:46]} Nxe4 {[%emt 0:06:12]} 7. Bxf7+ {[%emt 0:19:32]} Rxf7 {[%emt 0:00:51]} 8. Nxe4 {[%emt 0:00:05]} h6 {[%emt 0:01:21]} 9. h3 {[%emt 0:00:24]} g5 {[%emt 0:05:45]} 10. Nh2 {[%emt 0:00:16]} Nc6 {[%emt 0:16:42]} 11. c3 {[%emt 0:00:31]} e5 {[%emt 0:00:28]} 12. dxe5 {[%emt 0:00:05]} dxe5 {[%emt 0:01:37]} 13. Qe2 {[%emt 0:02:46]} Bf5 {[%emt 0:05:06]} 14. Rd1 {[%emt 0:00:18]} Qe7 {[%emt 0:01:57]} 15. Nf1 {[%emt 0:13:52]} Nd8 {[%emt 0:03:51]} 16. Nfg3 {[%emt 0:00:40]} Bg6 {[%emt 0:01:25]} 17. Qb5 {[%emt 0:00:49]} a6 {[%emt 0:02:25]} 18. Qb3 {[%emt 0:00:19]} b6 {[%emt 0:00:28]} 19. Qd5 {[%emt 0:03:00]} Rb8 {[%emt 0:01:33]} 20. Be3 {[%emt 0:03:12]} Ne6 {[%emt 0:00:34]} 21. Qc6 {[%emt 0:00:17]} Kh7 {[%emt 0:10:31]} 22. Rd2 {[%emt 0:04:29]} Qe8 {[%emt 0:05:13]} 23. Qc4 {[%emt 0:00:35]} a5 {[%emt 0:02:52]} 24. Rad1 {[%emt 0:02:31]} Kh8 {[%emt 0:09:59]} 25. a4 {[%emt 0:02:15]} Re7 {[%emt 0:02:10]} 26. b3 {[%emt 0:04:57]} b5 {[%emt 0:01:47]} 27. axb5 {[%emt 0:00:55]} Qxb5 {[%emt 0:00:47]} 28. Qxb5 {[%emt 0:04:16]} Rxb5 {[%emt 0:00:04]} 29. Rd5 {[%emt 0:00:12]} Rxb3 {[%emt 0:04:57]} 30. Rxa5 {[%emt 0:00:04]} Nf4 {[%emt 0:01:10]} 31. Kh2 {[%emt 0:04:26]} Nh5 {[%emt 0:01:49]} 32. Rd8+ {[%emt 0:03:06]} Kh7 {[%emt 0:00:45]} 33. Nxh5 {[%emt 0:00:44]} Bxh5 {[%emt 0:01:10]} 34. Rc5 {[%emt 0:02:03]} Bg6 {[%emt 0:00:31]} 35. f3 {[%emt 0:01:20]} Rb2 {[%emt 0:01:30]} 36. Rd2 {[%emt 0:01:34]} Rxd2 {[%emt 0:02:29]} 37. Bxd2 {[%emt 0:00:17]} Rd7 {[%emt 0:01:11]} 38. Be1 {[%emt 0:00:15]} Kg8 {[%emt 0:00:29]} 39. Bg3 {[%emt 0:00:11]} Re7 {[%emt 0:00:27]} 40. c4 {[%emt 0:01:55]} Kf7 {[%emt 0:01:28]} 41. Nc3 {[%emt 0:00:18]} Bd3 {[%emt 0:01:11]} 42. Nd5 {[%emt 0:00:44]} Rd7 {[%emt 0:01:18]} 43. Nxc7 {[%emt 0:00:05]} Bf8 {[%emt 0:00:13]} 44. Rc6 {[%emt 0:00:44]} Rd6 {[%emt 0:00:22]} 45. Rc5 {[%emt 0:03:43]} Rd4 {[%emt 0:00:26]} 46. Rxe5 {[%emt 0:00:44]} Bxc4 {[%emt 0:00:29]} 47. Rf5+ {[%emt 0:00:56]} Kg8 {[%emt 0:00:12]} 48. Ne8 {[%emt 0:00:59]} Be7 {[%emt 0:00:08]} 49. Nf6+ {[%emt 0:00:26]} Bxf6 {[%emt 0:00:09]} 50. Rxf6 {[%emt 0:00:04]} Kh7 {[%emt 0:00:05]} 51. Rc6 {[%emt 0:01:53]} Bf1 {[%emt 0:01:13]} 52. Kg1 {[%emt 0:00:10]} Bb5 {[%emt 0:00:25]} 53. Rb6 {[%emt 0:00:18]} Rd1+ {[%emt 0:00:08]} 54. Kh2 {[%emt 0:01:58]} Bf1 {[%emt 0:00:05]} 55. Rb7+ {[%emt 0:00:16]} Kg6 {[%emt 0:00:31]} 56. Rb6+ {[%emt 0:00:03]} Kf5 {[%emt 0:00:12]} 57. Bf2 {[%emt 0:01:31]} h5 {[%emt 0:01:14]} 58. g4+ {[%emt 0:00:24]} hxg4 {[%emt 0:00:05]} 59. hxg4+ {[%emt 0:00:06]} Kf4 {[%emt 0:00:36]} 60. Rf6+ {[%emt 0:00:05]} Ke5 {[%emt 0:00:04]} 61. Rf5+ {[%emt 0:00:20]} Ke6 {[%emt 0:00:13]} 62. Rxg5 {[%emt 0:00:07]} Kf7 {[%emt 0:00:49]} 63. Kg3 {[%emt 0:00:14]} Bc4 {[%emt 0:00:33]} 64. Re5 {[%emt 0:00:38]} Rd3 {[%emt 0:00:16]} 65. Be3 {[%emt 0:00:12]} Rd5 {[%emt 0:04:01]} 66. Re4 {[%emt 0:00:11]} Bd3 {[%emt 0:00:05]} 67. Rb4 {[%emt 0:00:25]} Kg6 {[%emt 0:00:56]} 68. f4 {[%emt 0:00:21]} Rd6 {[%emt 0:00:07]} 69. Bc5 {[%emt 0:00:17]} Rc6 {[%emt 0:00:19]} 70. Rd4 {[%emt 0:00:05]} Ba6 {[%emt 0:01:07]} 71. f5+ {[%emt 0:00:22]} Kf7 {[%emt 0:00:12]} 72. Rd7+ {[%emt 0:00:21]} Kg8 {[%emt 0:00:30]} 73. Bd4 {[%emt 0:00:25]} Bd3 {[%emt 0:00:55]} 74. Kf4 {[%emt 0:00:19]} Rc2 {[%emt 0:00:32]} 75. g5 {[%emt 0:00:48]} Rc1 {[%emt 0:00:13]} 76. g6 {[%emt 0:01:41]} Rf1+ {[%emt 0:00:47]} 77. Ke3 {[%emt 0:00:04]} Rxf5 {[%emt 0:00:21]} 78. Rd8+ {[%emt 0:00:19]} Rf8 {[%emt 0:00:06]} 79. Rxf8+ {[%emt 0:00:03]} Kxf8 {[%emt 0:00:08]} 80. Kxd3 {[%emt 0:00:02]} Kg8 {[%emt 0:00:05]} 81. Ke4 {[%emt 0:00:03]} Kf8 {[%emt 0:00:04]} 82. Kf5 {[%emt 0:00:02]} Ke7 {[%emt 0:00:07]} 83. Bc5+ {[%emt 0:00:05]} Kd7 {[%emt 0:00:04]} 84. g7 {[%emt 0:00:05]} Kc6 {[%emt 0:00:02]} 85. g8=Q {[%emt 0:07:57]} Kxc5 {[%emt 0:00:04]} 86. Ke5 {[%emt 0:00:00]} Kb4 {[%emt 0:00:03]} 87. Kd4 {[%emt 0:00:00]} Kb5 {[%emt 0:00:04]} 88. Qe6 {[%emt 0:00:00]} Kb4 {[%emt 0:00:03]} 89. Qb6+ {[%emt 0:00:00]} Ka3 {[%emt 0:00:02]} 90. Kc3 {[%emt 0:00:00]} Ka4 {[%emt 0:00:03]} 91. Qa6# {[%emt 0:00:00]} 1-0

[Event "14th Chennai GM Open 2023"]
[Site "Chennai"]
[Date "2024.01.04"]
[Round "7.10"]
[White "Ayushh Ravikumar"]
[Black "Podolchenko, Evgeniy"]
[Result "1/2-1/2"]
[ECO "D36"]
[WhiteElo "1885"]
[BlackElo "2376"]
[Annotator "RC"]
[PlyCount "64"]
[EventDate "2023.12.31"]
[EventType "swiss"]
[EventCountry "IND"]
[SourceTitle "playchess.com"]
[Source "ChessBase"]
[SourceQuality "1"]
[TimeControl "5400+30"]

1. d4 {[%emt 0:00:27]} Nf6 {[%emt 0:00:06]} 2. Nf3 {[%emt 0:00:14]} e6 {[%emt 0:00:08]} 3. c4 {[%emt 0:00:09]} d5 {[%emt 0:01:11]} 4. Nc3 {[%emt 0:03:14]} Be7 {[%emt 0:03:10]} 5. Bg5 {[%emt 0:01:10]} Nbd7 {[%emt 0:00:31]} 6. e3 {[%emt 0:00:22]} O-O {[%emt 0:00:07]} 7. Qc2 {[%emt 0:00:28]} c6 {[%emt 0:00:31]} 8. cxd5 {[%emt 0:02:10]} exd5 {[%emt 0:00:08]} 9. Bd3 {[%emt 0:00:05]} Re8 {[%emt 0:00:06]} 10. O-O {[%emt 0:00:50]} Nf8 {[%emt 0:00:18]} 11. Rab1 {[%emt 0:11:26]} a6 {[%emt 0:04:57]} 12. b4 {[%emt 0:05:17]} Ne4 {[%emt 0:01:03]} 13. Bxe7 {[%emt 0:06:56]} Qxe7 {[%emt 0:00:03]} 14. a4 {[%emt 0:00:11]} Ng6 {[%emt 0:03:18]} 15. b5 {[%emt 0:04:04]} axb5 {[%emt 0:02:22]} 16. axb5 {[%emt 0:00:08]} Nxc3 {[%emt 0:08:44]} 17. Qxc3 {[%emt 0:00:18]} Bg4 {[%emt 0:00:10]} 18. Nd2 {[%emt 0:17:05]} Nh4 {[%emt 0:02:37]} 19. Rfe1 {[%emt 0:03:53]} Qg5 {[%emt 0:19:58]} 20. g3 {[%emt 0:12:05]} Bd7 {[%emt 0:12:30]} 21. bxc6 {[%emt 0:02:39]} bxc6 {[%emt 0:04:55]} 22. Be2 {[%emt 0:09:58]} Ng6 {[%emt 0:08:13]} 23. Rb7 {[%emt 0:02:46]} Red8 {[%emt 0:05:48]} 24. Ra1 {[%emt 0:01:35]} Be8 {[%emt 0:06:08]} 25. Rxa8 {[%emt 0:03:05]} Rxa8 {[%emt 0:00:14]} 26. Qb2 {[%emt 0:00:12]} Qd8 {[%emt 0:03:26]} 27. Nb3 {[%emt 0:02:43]} Nf8 {[%emt 0:03:20]} 28. Nc5 {[%emt 0:01:17]} Nd7 {[%emt 0:01:22]} 29. Nxd7 {[%emt 0:06:15]} Bxd7 {[%emt 0:00:02]} 30. Qb6 {[%emt 0:00:16]} Qxb6 {[%emt 0:01:16]} 31. Rxb6 {[%emt 0:00:11]} Kf8 {[%emt 0:00:20]} 32. Kg2 {[%emt 0:00:54]} Ke7 {[%emt 0:00:09]} 1/2-1/2

[Event "14th Chennai GM Open 2023"]
[Site "Chennai"]
[Date "2024.01.04"]
[Round "7.11"]
[White "Shahil Dey"]
[Black "Anilkumar, O.T."]
[Result "1-0"]
[ECO "B00"]
[WhiteElo "2368"]
[BlackElo "1877"]
[Annotator "RC"]
[PlyCount "87"]
[EventDate "2023.12.31"]
[EventType "swiss"]
[EventCountry "IND"]
[SourceTitle "playchess.com"]
[Source "ChessBase"]
[SourceQuality "1"]
[TimeControl "5400+30"]

1. e4 {[%emt 0:00:00]} e6 {[%emt 0:00:03]} 2. d4 {[%emt 0:00:05]} b6 {[%emt 0:00:04]} 3. Bd3 {[%emt 0:00:48]} Bb7 {[%emt 0:00:06]} 4. Nf3 {[%emt 0:00:46]} Nf6 {[%emt 0:01:05]} 5. Nbd2 {[%emt 0:02:32]} c5 {[%emt 0:01:13]} 6. c3 {[%emt 0:01:06]} d6 {[%emt 0:00:18]} 7. O-O {[%emt 0:00:17]} Be7 {[%emt 0:00:06]} 8. Re1 {[%emt 0:10:14]} a6 {[%emt 0:02:00]} 9. Qe2 {[%emt 0:02:04]} Qc7 {[%emt 0:10:17]} 10. Nf1 {[%emt 0:01:45]} Nbd7 {[%emt 0:05:54]} 11. Ng3 {[%emt 0:01:10]} b5 {[%emt 0:09:12]} 12. Bg5 {[%emt 0:09:26]} h6 {[%emt 0:03:22]} 13. Bd2 {[%emt 0:00:07]} g6 {[%emt 0:08:03]} 14. b3 {[%emt 0:05:45]} e5 {[%emt 0:00:26]} 15. a4 {[%emt 0:02:39]} b4 {[%emt 0:02:36]} 16. dxe5 {[%emt 0:04:04]} dxe5 {[%emt 0:00:05]} 17. Rec1 {[%emt 0:03:12]} Qd8 {[%emt 0:17:21]} 18. a5 {[%emt 0:03:05]} Bd6 {[%emt 0:01:59]} 19. cxb4 {[%emt 0:01:25]} cxb4 {[%emt 0:00:03]} 20. Rc4 {[%emt 0:00:11]} Rc8 {[%emt 0:00:29]} 21. Rxc8 {[%emt 0:02:05]} Qxc8 {[%emt 0:00:03]} 22. Rc1 {[%emt 0:00:24]} Qa8 {[%emt 0:02:23]} 23. Rc4 {[%emt 0:00:11]} O-O {[%emt 0:02:25]} 24. Bxh6 {[%emt 0:02:35]} Rc8 {[%emt 0:00:02]} 25. Ng5 {[%emt 0:01:49]} Nc5 {[%emt 0:04:40]} 26. Bc2 {[%emt 0:00:07]} Bc6 {[%emt 0:01:28]} 27. Qf3 {[%emt 0:01:34]} Ncd7 {[%emt 0:00:05]} 28. h4 {[%emt 0:20:48]} Bb5 {[%emt 0:00:11]} 29. h5 {[%emt 0:02:46]} Bxc4 {[%emt 0:09:19]} 30. bxc4 {[%emt 0:00:01]} Bc5 {[%emt 0:00:01]} 31. hxg6 {[%emt 0:00:29]} fxg6 {[%emt 0:00:02]} 32. Ba4 {[%emt 0:01:07]} Rc6 {[%emt 0:00:01]} 33. Nf1 {[%emt 0:02:35]} Qc8 {[%emt 0:00:22]} 34. Bxc6 {[%emt 0:02:24]} Qxc6 {[%emt 0:00:01]} 35. Nd2 {[%emt 0:00:01]} Qd6 {[%emt 0:05:09]} 36. Nb3 {[%emt 0:00:46]} Bd4 {[%emt 0:00:46]} 37. Qh3 {[%emt 0:04:45]} Ba7 {[%emt 0:02:31]} 38. Qf3 {[%emt 0:04:51]} Bd4 {[%emt 0:06:08]} 39. Qh3 {[%emt 0:01:19]} Ba7 {[%emt 0:00:03]} 40. Qf3 {[%emt 0:00:15]} Bd4 {[%emt 0:00:01]} 41. c5 {[%emt 0:03:46]} Bxc5 {[%emt 0:06:43]} 42. Qe2 {[%emt 0:00:07]} Qe7 {[%emt 0:00:33]} 43. Qxa6 {[%emt 0:02:03]} Bxf2+ {[%emt 0:00:09]} 44. Kxf2 {[%emt 0:00:03]} 1-0

[Event "14th Chennai GM Open 2023"]
[Site "Chennai"]
[Date "2024.01.04"]
[Round "7.12"]
[White "Buscara, Sevan"]
[Black "Raihaan Zahid"]
[Result "1-0"]
[ECO "D32"]
[WhiteElo "2359"]
[BlackElo "1839"]
[Annotator "RC"]
[PlyCount "175"]
[EventDate "2023.12.31"]
[EventType "swiss"]
[EventCountry "IND"]
[SourceTitle "playchess.com"]
[Source "ChessBase"]
[SourceQuality "1"]
[TimeControl "5400+30"]

1. Nf3 {[%emt 0:00:07]} Nf6 {[%emt 0:00:12]} 2. c4 {[%emt 0:00:08]} e6 {[%emt 1:31:18]} 3. Nc3 {[%emt 0:00:27]} d5 {[%emt 0:00:00]} 4. e3 {[%emt 0:00:07]} c5 {[%emt 0:00:00]} 5. cxd5 {[%emt 0:00:07]} exd5 {[%emt 0:00:00]} 6. d4 {[%emt 0:01:01]} Nc6 {[%emt 0:00:00]} 7. Be2 {[%emt 0:00:41]} a6 {[%emt 0:00:00]} 8. O-O {[%emt 0:00:31]} Be7 {[%emt 0:00:00]} 9. b3 {[%emt 0:06:45]} O-O {[%emt 0:00:00]} 10. dxc5 {[%emt 0:01:42]} Bxc5 {[%emt 0:00:00]} 11. Bb2 {[%emt 0:00:04]} Re8 {[%emt 0:00:00]} 12. Rc1 {[%emt 0:04:05]} Ba7 {[%emt 0:00:00]} 13. Na4 {[%emt 0:05:38]} Ne4 {[%emt 0:00:00]} 14. Nd4 {[%emt 0:02:48]} Ne5 {[%emt 0:00:00]} 15. f3 {[%emt 0:12:15]} Nf6 {[%emt 0:00:00]} 16. Re1 {[%emt 0:02:12]} Qd6 {[%emt 0:00:00]} 17. Bf1 {[%emt 0:09:09]} h5 {[%emt 0:00:00]} 18. Qd2 {[%emt 0:04:45]} b5 {[%emt 0:00:00]} 19. Nc3 {[%emt 0:00:23]} Bd7 {[%emt 0:00:00]} 20. Qf2 {[%emt 0:03:44]} Ng6 {[%emt 0:00:00]} 21. Nce2 {[%emt 0:03:21]} h4 {[%emt 0:00:00]} 22. g3 {[%emt 0:00:25]} Rad8 {[%emt 0:01:53]} 23. Nf4 {[%emt 0:02:20]} hxg3 {[%emt 0:00:20]} 24. hxg3 {[%emt 0:00:12]} Ne5 {[%emt 0:04:25]} 25. g4 {[%emt 0:04:04]} Bb8 {[%emt 0:01:44]} 26. Rcd1 {[%emt 0:05:09]} Bc8 {[%emt 0:02:00]} 27. Rd2 {[%emt 0:01:53]} Bc7 {[%emt 0:00:54]} 28. Rc2 {[%emt 0:01:01]} Ba5 {[%emt 0:00:46]} 29. Rec1 {[%emt 0:02:39]} Bxg4 {[%emt 0:00:49]} 30. fxg4 {[%emt 0:03:00]} Nexg4 {[%emt 0:00:13]} 31. Qh4 {[%emt 0:09:50]} Rxe3 {[%emt 0:00:25]} 32. Ng2 {[%emt 0:01:16]} Re5 {[%emt 0:00:50]} 33. Qg3 {[%emt 0:00:50]} Bb6 {[%emt 0:00:11]} 34. Rc8 {[%emt 0:02:35]} Qd7 {[%emt 0:01:30]} 35. Rxd8+ {[%emt 0:00:45]} Qxd8 {[%emt 0:00:00]} 36. Bd3 {[%emt 0:01:19]} g6 {[%emt 0:00:11]} 37. Rc6 {[%emt 0:01:14]} Qb8 {[%emt 0:00:24]} 38. Qf4 {[%emt 0:07:59]} Kg7 {[%emt 0:00:46]} 39. Bf1 {[%emt 0:02:17]} g5 {[%emt 0:00:31]} 40. Qg3 {[%emt 0:00:41]} Qa7 {[%emt 0:00:20]} 41. Rxb6 {[%emt 0:00:52]} Qxb6 {[%emt 0:00:01]} 42. Bd3 {[%emt 0:00:31]} Kf8 {[%emt 0:01:08]} 43. Kf1 {[%emt 0:00:32]} Re8 {[%emt 0:00:37]} 44. Qh3 {[%emt 0:00:19]} Qc7 {[%emt 0:00:31]} 45. Nf5 {[%emt 0:00:37]} Qh2 {[%emt 0:00:26]} 46. Ba3+ {[%emt 0:00:32]} Kg8 {[%emt 0:00:03]} 47. Nh6+ {[%emt 0:00:32]} Kg7 {[%emt 0:00:10]} 48. Nf5+ {[%emt 0:00:16]} Kg8 {[%emt 0:00:02]} 49. Nh6+ {[%emt 0:00:41]} Kh8 {[%emt 0:01:14]} 50. Nxf7+ {[%emt 0:00:25]} Kg7 {[%emt 0:00:01]} 51. Nxg5 {[%emt 0:00:36]} Ne3+ {[%emt 0:01:18]} 52. Nxe3 {[%emt 0:00:24]} Qxh3+ {[%emt 0:00:01]} 53. Nxh3 {[%emt 0:00:16]} Rxe3 {[%emt 0:00:02]} 54. Nf2 {[%emt 0:00:09]} Kg8 {[%emt 0:01:39]} 55. Bc5 {[%emt 0:00:08]} Re8 {[%emt 0:00:24]} 56. Bd4 {[%emt 0:00:24]} Ne4 {[%emt 0:00:12]} 57. Ng4 {[%emt 0:00:52]} Rc8 {[%emt 0:00:16]} 58. Ne3 {[%emt 0:00:54]} Rc1+ {[%emt 0:01:04]} 59. Ke2 {[%emt 0:00:23]} Nc3+ {[%emt 0:00:34]} 60. Bxc3 {[%emt 0:00:33]} Rxc3 {[%emt 0:00:02]} 61. Nxd5 {[%emt 0:00:13]} Rc1 {[%emt 0:00:43]} 62. Nb4 {[%emt 0:00:32]} a5 {[%emt 0:00:09]} 63. Nc2 {[%emt 0:00:06]} b4 {[%emt 0:00:06]} 64. Ke3 {[%emt 0:00:45]} Kf7 {[%emt 0:00:16]} 65. Kd4 {[%emt 0:00:21]} Ke6 {[%emt 0:00:07]} 66. Kc5 {[%emt 0:00:14]} Rd1 {[%emt 0:01:18]} 67. Nd4+ {[%emt 0:00:59]} Kf6 {[%emt 0:00:36]} 68. Bc4 {[%emt 0:00:27]} Ra1 {[%emt 0:00:06]} 69. Kb5 {[%emt 0:00:27]} Rxa2 {[%emt 0:00:09]} 70. Nc6 {[%emt 0:00:06]} Ra1 {[%emt 0:01:55]} 71. Nxa5 {[%emt 0:00:08]} Ke5 {[%emt 0:00:12]} 72. Nc6+ {[%emt 0:00:31]} Kd6 {[%emt 0:00:03]} 73. Kb6 {[%emt 0:00:17]} Ra8 {[%emt 0:00:31]} 74. Nxb4 {[%emt 0:00:54]} Rb8+ {[%emt 0:00:07]} 75. Ka5 {[%emt 0:00:02]} Ra8+ {[%emt 0:00:26]} 76. Na6 {[%emt 0:00:10]} Kc6 {[%emt 0:01:33]} 77. b4 {[%emt 0:00:12]} Rd8 {[%emt 0:00:22]} 78. b5+ {[%emt 0:00:40]} Kb7 {[%emt 0:00:01]} 79. Bd3 {[%emt 0:00:19]} Rd5 {[%emt 0:00:20]} 80. Be4 {[%emt 0:00:07]} Ka7 {[%emt 0:00:02]} 81. Nb4 {[%emt 0:00:57]} Rh5 {[%emt 0:00:31]} 82. Bd5 {[%emt 0:00:49]} Rh6 {[%emt 0:00:27]} 83. Nc6+ {[%emt 0:00:23]} Kb7 {[%emt 0:00:12]} 84. b6 {[%emt 0:00:49]} Rh7 {[%emt 0:01:07]} 85. Nb4+ {[%emt 0:00:05]} Kb8 {[%emt 0:00:05]} 86. Ka6 {[%emt 0:00:43]} Rb7 {[%emt 0:01:59]} 87. Nc6+ {[%emt 0:00:12]} Kc8 {[%emt 0:00:03]} 88. Be6+ {[%emt 0:00:06]} 1-0